[Event "*** Titled Tuesday Blitz"]
[Site "Chess.com"]
[Date "2020.05.19"]
[Round "9"]
[White "Akhayan"]
[Black "Lovinski"]
[Result "1-0"]
[WhiteElo "2304"]
[BlackElo "2429"]
[TimeControl "180+1"]
[EndTime "13:48:07 PDT"]
[Termination "Akhayan won by resignation"]

1. d4 {[%clk 0:02:35.3]} 1... d5 {[%clk 0:03:00]} 2. Nf3 {[%clk 0:02:35.1]} 2...
e6 {[%clk 0:03:00.2]} 3. g3 {[%clk 0:02:35.5]} 3... Nf6 {[%clk 0:02:56.1]} 4.
Bg2 {[%clk 0:02:36]} 4... b5 {[%clk 0:02:56.7]} 5. O-O {[%clk 0:02:36.4]} 5...
Bb7 {[%clk 0:02:56.5]} 6. b3 {[%clk 0:02:36.5]} 6... Be7 {[%clk 0:02:56.5]} 7.
Bb2 {[%clk 0:02:37.1]} 7... O-O {[%clk 0:02:57]} 8. Nbd2 {[%clk 0:02:37.6]} 8...
Nbd7 {[%clk 0:02:57.1]} 9. Rc1 {[%clk 0:02:38.2]} 9... c5 {[%clk 0:02:56.2]} 10.
c4 {[%clk 0:02:38.5]} 10... dxc4 {[%clk 0:02:44.7]} 11. bxc4 {[%clk 0:02:38.6]}
11... b4 {[%clk 0:02:44.2]} 12. d5 {[%clk 0:02:38.4]} 12... exd5 {[%clk
0:02:42.6]} 13. Nh4 {[%clk 0:02:38.6]} 13... Nb6 {[%clk 0:02:36.4]} 14. Nf5
{[%clk 0:02:38.5]} 14... Bc8 {[%clk 0:02:31.6]} 15. Nxe7+ {[%clk 0:02:37.6]}
15... Qxe7 {[%clk 0:02:32.5]} 16. cxd5 {[%clk 0:02:37.4]} 16... Nfxd5 {[%clk
0:02:12.9]} 17. Nc4 {[%clk 0:02:21.6]} 17... Bb7 {[%clk 0:02:07.4]} 18. Nxb6
{[%clk 0:02:16.8]} 18... Nxb6 {[%clk 0:02:08.3]} 19. Bxb7 {[%clk 0:02:16.3]}
19... Qxb7 {[%clk 0:02:09.2]} 20. Rxc5 {[%clk 0:02:16.3]} 20... Rad8 {[%clk
0:01:41.6]} 21. Qb3 {[%clk 0:02:11.2]} 21... Qa6 {[%clk 0:01:28.8]} 22. Rg5
{[%clk 0:02:03.2]} 22... g6 {[%clk 0:01:13.3]} 23. Qxb4 {[%clk 0:01:59]} 23...
Qc4 {[%clk 0:00:52.7]} 24. Rg4 {[%clk 0:01:35.9]} 24... Qxb4 {[%clk 0:00:50.1]}
25. Rxb4 {[%clk 0:01:35.1]} 25... Rd2 {[%clk 0:00:50.5]} 26. e3 {[%clk
0:01:23.4]} 26... Rc8 {[%clk 0:00:49.2]} 27. Bd4 {[%clk 0:01:20.3]} 27... Rcc2
{[%clk 0:00:42.4]} 28. Bxb6 {[%clk 0:01:19.8]} 28... axb6 {[%clk 0:00:43.3]} 29.
Rxb6 {[%clk 0:01:19.7]} 29... Rxa2 {[%clk 0:00:43.2]} 30. Rb4 {[%clk 0:01:19]}
30... h5 {[%clk 0:00:36.4]} 31. h4 {[%clk 0:01:18.9]} 31... Kg7 {[%clk
0:00:36.5]} 32. Rf4 {[%clk 0:01:18.6]} 32... Rdc2 {[%clk 0:00:31.6]} 33. Rd1
{[%clk 0:01:17.5]} 33... Rd2 {[%clk 0:00:31.4]} 34. Rb1 {[%clk 0:01:17.3]} 34...
Rdb2 {[%clk 0:00:31.5]} 35. Rc1 {[%clk 0:01:17.3]} 35... Rc2 {[%clk 0:00:31.7]}
36. Rf1 {[%clk 0:01:14.5]} 36... f6 {[%clk 0:00:27.8]} 37. Rb1 {[%clk
0:01:11.2]} 37... Rcb2 {[%clk 0:00:26.4]} 38. Rxb2 {[%clk 0:01:10.7]} 38... Rxb2
{[%clk 0:00:27.3]} 39. Kg2 {[%clk 0:01:10.7]} 39... g5 {[%clk 0:00:26.9]} 40.
Rf5 {[%clk 0:01:07.1]} 40... Kg6 {[%clk 0:00:23.9]} 41. Rc5 {[%clk 0:01:06.1]}
41... gxh4 {[%clk 0:00:23.9]} 42. gxh4 {[%clk 0:01:05.8]} 42... Rb4 {[%clk
0:00:21.8]} 43. Kg3 {[%clk 0:01:05.5]} 43... Rg4+ {[%clk 0:00:21.9]} 44. Kh3
{[%clk 0:01:05.8]} 44... Rg1 {[%clk 0:00:22.3]} 45. Rc4 {[%clk 0:00:58.5]} 45...
Rh1+ {[%clk 0:00:20]} 46. Kg2 {[%clk 0:00:58.5]} 46... Ra1 {[%clk 0:00:18.5]}
47. Kf3 {[%clk 0:00:55.1]} 47... Rh1 {[%clk 0:00:17.9]} 48. Kg2 {[%clk
0:00:52.5]} 48... Ra1 {[%clk 0:00:17.8]} 49. Rb4 {[%clk 0:00:52.4]} 49... Rc1
{[%clk 0:00:17.3]} 50. Rb8 {[%clk 0:00:51.9]} 50... Ra1 {[%clk 0:00:17.1]} 51.
Rg8+ {[%clk 0:00:50.8]} 51... Kf7 {[%clk 0:00:17.3]} 52. Rh8 {[%clk 0:00:50.5]}
52... Kg6 {[%clk 0:00:17.8]} 53. Rg8+ {[%clk 0:00:50.1]} 53... Kf7 {[%clk
0:00:18]} 54. Rc8 {[%clk 0:00:49.8]} 54... Kg6 {[%clk 0:00:18.4]} 55. e4 {[%clk
0:00:49.2]} 55... Ra4 {[%clk 0:00:17.1]} 56. Kf3 {[%clk 0:00:48.2]} 56... Ra1
{[%clk 0:00:18]} 57. Rc6 {[%clk 0:00:47.4]} 57... Rh1 {[%clk 0:00:18.1]} 58. e5
{[%clk 0:00:47.4]} 58... Rxh4 {[%clk 0:00:16.7]} 59. Rxf6+ {[%clk 0:00:46.5]}
59... Kg7 {[%clk 0:00:17.1]} 60. Rf4 {[%clk 0:00:44.7]} 60... Rh3+ {[%clk
0:00:16.7]} 61. Ke4 {[%clk 0:00:44]} 61... Ra3 {[%clk 0:00:17.6]} 62. Rf6 {[%clk
0:00:41.3]} 62... h4 {[%clk 0:00:15.5]} 63. Rf4 {[%clk 0:00:38.7]} 63... h3
{[%clk 0:00:15.1]} 64. Rh4 {[%clk 0:00:38.1]} 64... Kg6 {[%clk 0:00:13.9]} 65.
Rh8 {[%clk 0:00:31.7]} 65... Ra4+ {[%clk 0:00:12.8]} 66. Kd5 {[%clk 0:00:31.8]}
66... Rf4 {[%clk 0:00:12]} 67. Rxh3 {[%clk 0:00:29.6]} 67... Rxf2 {[%clk
0:00:12.3]} 68. Ke6 {[%clk 0:00:29.2]} 68... Ra2 {[%clk 0:00:12.1]} 69. Rg3+
{[%clk 0:00:29.2]} 69... Kh7 {[%clk 0:00:12.6]} 70. Kf6 {[%clk 0:00:29.3]} 70...
Rf2+ {[%clk 0:00:13]} 71. Ke7 {[%clk 0:00:28.7]} 71... Ra2 {[%clk 0:00:13.4]}
72. e6 {[%clk 0:00:28]} 72... Ra7+ {[%clk 0:00:13.4]} 73. Kf6 {[%clk 0:00:27.8]}
73... Ra6 {[%clk 0:00:11.9]} 74. Kf7 {[%clk 0:00:27.3]} 74... Ra7+ {[%clk
0:00:12.2]} 75. e7 {[%clk 0:00:27.2]} 75... Kh6 {[%clk 0:00:12.6]} 76. Kf8
{[%clk 0:00:27]} 1-0

[Event "*** Titled Tuesday Blitz"]
[Site "Chess.com"]
[Date "2020.05.19"]
[Round "9"]
[White "Anna_Ko_Rnd"]
[Black "MisiekZielony"]
[Result "1-0"]
[WhiteElo "1667"]
[BlackElo "2089"]
[TimeControl "180+1"]
[EndTime "13:48:08 PDT"]
[Termination "Anna_Ko_Rnd won on time"]

1. e4 {[%clk 0:03:00.9]} 1... Nf6 {[%clk 0:02:42.3]} 2. e5 {[%clk 0:02:59.8]}
2... Nd5 {[%clk 0:02:41.2]} 3. d4 {[%clk 0:02:59.9]} 3... d6 {[%clk 0:02:41.1]}
4. Nf3 {[%clk 0:02:57.9]} 4... Bg4 {[%clk 0:02:40.6]} 5. exd6 {[%clk 0:02:57.1]}
5... exd6 {[%clk 0:02:40.2]} 6. c4 {[%clk 0:02:56.5]} 6... Nb6 {[%clk 0:02:40]}
7. Nc3 {[%clk 0:02:56]} 7... Be7 {[%clk 0:02:39.9]} 8. Be2 {[%clk 0:02:55.7]}
8... O-O {[%clk 0:02:38.5]} 9. b3 {[%clk 0:02:53.4]} 9... Nc6 {[%clk 0:02:34.4]}
10. O-O {[%clk 0:02:52.5]} 10... Bf6 {[%clk 0:02:31.6]} 11. Be3 {[%clk
0:02:50.3]} 11... Re8 {[%clk 0:02:30.7]} 12. h3 {[%clk 0:02:47.3]} 12... Bh5
{[%clk 0:02:30.1]} 13. Qd2 {[%clk 0:02:46.2]} 13... a6 {[%clk 0:01:41.9]} 14.
Rfe1 {[%clk 0:02:44.6]} 14... d5 {[%clk 0:01:40.8]} 15. c5 {[%clk 0:02:42.2]}
15... Nc8 {[%clk 0:01:40.4]} 16. b4 {[%clk 0:02:29.4]} 16... Bxf3 {[%clk
0:01:33.9]} 17. Bxf3 {[%clk 0:02:25.9]} 17... N8e7 {[%clk 0:01:30]} 18. Rab1
{[%clk 0:02:20]} 18... g6 {[%clk 0:01:27.1]} 19. a4 {[%clk 0:02:15.3]} 19... h5
{[%clk 0:01:04.9]} 20. Red1 {[%clk 0:02:00.8]} 20... a5 {[%clk 0:01:03.8]} 21.
b5 {[%clk 0:01:49.6]} 21... Nb4 {[%clk 0:00:13.3]} 22. g4 {[%clk 0:01:48.5]}
22... hxg4 {[%clk 0:00:12.6]} 23. hxg4 {[%clk 0:01:48.3]} 23... c6 {[%clk
0:00:12.7]} 24. b6 {[%clk 0:01:34.6]} 24... Qd7 {[%clk 0:00:12.2]} 25. Kg2
{[%clk 0:01:32]} 25... Bg7 {[%clk 0:00:11.9]} 26. Rh1 {[%clk 0:01:28.5]} 26...
f6 {[%clk 0:00:11.7]} 27. Bh6 {[%clk 0:01:24.9]} 27... Bh8 {[%clk 0:00:10.8]}
28. Rh2 {[%clk 0:00:48.4]} 28... Qe6 {[%clk 0:00:10]} 29. Rbh1 {[%clk
0:00:44.9]} 29... Qf7 {[%clk 0:00:10.1]} 30. Bf8 {[%clk 0:00:39.3]} 30... Bg7
{[%clk 0:00:09.9]} 31. Bxg7 {[%clk 0:00:38.4]} 31... Qxg7 {[%clk 0:00:10.1]} 32.
Rh6 {[%clk 0:00:33.7]} 32... Rad8 {[%clk 0:00:07.6]} 33. Qf4 {[%clk 0:00:28]}
33... g5 {[%clk 0:00:07.5]} 34. Qh2 {[%clk 0:00:27.6]} 34... Ng6 {[%clk
0:00:07.5]} 35. Rxg6 {[%clk 0:00:21.5]} 35... Qxg6 {[%clk 0:00:06.5]} 36. Qh8+
{[%clk 0:00:21.3]} 36... Kf7 {[%clk 0:00:06.7]} 37. Rh7+ {[%clk 0:00:19.9]}
37... Ke6 {[%clk 0:00:06.7]} 38. Qg7 {[%clk 0:00:18.2]} 38... Qxg7 {[%clk
0:00:06.8]} 39. Rxg7 {[%clk 0:00:18.5]} 39... Re7 {[%clk 0:00:07.2]} 40. Rxe7+
{[%clk 0:00:14.3]} 40... Kxe7 {[%clk 0:00:07.3]} 41. Bd1 {[%clk 0:00:10.9]}
41... Rf8 {[%clk 0:00:07.5]} 42. f4 {[%clk 0:00:10]} 42... gxf4 {[%clk 0:00:07]}
43. Kf3 {[%clk 0:00:10.5]} 43... f5 {[%clk 0:00:07.3]} 44. g5 {[%clk 0:00:10.5]}
44... Rh8 {[%clk 0:00:07.5]} 45. Kxf4 {[%clk 0:00:10.3]} 45... Rh3 {[%clk
0:00:07.7]} 46. Ne2 {[%clk 0:00:09.6]} 46... Rd3 {[%clk 0:00:07.5]} 47. Kxf5
{[%clk 0:00:06.1]} 47... Rxd1 {[%clk 0:00:07.7]} 48. g6 {[%clk 0:00:06]} 48...
Rf1+ {[%clk 0:00:07.7]} 49. Nf4 {[%clk 0:00:06.1]} 49... Rxf4+ {[%clk
0:00:07.4]} 50. Kxf4 {[%clk 0:00:05.5]} 50... Nc2 {[%clk 0:00:07.4]} 51. Ke5
{[%clk 0:00:04.3]} 51... Kf8 {[%clk 0:00:07.5]} 52. Kd6 {[%clk 0:00:03.9]} 52...
Nxd4 {[%clk 0:00:07.3]} 53. Kc7 {[%clk 0:00:04.1]} 53... Nb3 {[%clk 0:00:07.5]}
54. Kxb7 {[%clk 0:00:04.4]} 54... Nxc5+ {[%clk 0:00:07.7]} 55. Kxc6 {[%clk
0:00:04.4]} 55... Nxa4 {[%clk 0:00:07.9]} 56. b7 {[%clk 0:00:04.5]} 1-0

[Event "*** Titled Tuesday Blitz"]
[Site "Chess.com"]
[Date "2020.05.19"]
[Round "9"]
[White "Sanan_Sjugirov"]
[Black "GHANDEEVAM2003"]
[Result "0-1"]
[WhiteElo "2834"]
[BlackElo "2918"]
[TimeControl "180+1"]
[EndTime "13:48:09 PDT"]
[Termination "GHANDEEVAM2003 won by resignation"]

1. d4 {[%clk 0:03:00.9]} 1... d5 {[%clk 0:02:59.4]} 2. c4 {[%clk 0:03:00.6]}
2... e6 {[%clk 0:02:59.5]} 3. Nf3 {[%clk 0:02:58.4]} 3... Nf6 {[%clk 0:02:59.3]}
4. g3 {[%clk 0:02:58.1]} 4... dxc4 {[%clk 0:02:59.3]} 5. Bg2 {[%clk 0:02:57.8]}
5... Bd7 {[%clk 0:02:59.8]} 6. Ne5 {[%clk 0:02:54]} 6... Bc6 {[%clk 0:03:00.3]}
7. Nxc6 {[%clk 0:02:53.1]} 7... Nxc6 {[%clk 0:03:01.2]} 8. e3 {[%clk 0:02:46.8]}
8... Qd7 {[%clk 0:02:58]} 9. Nd2 {[%clk 0:02:46.3]} 9... h5 {[%clk 0:02:47.5]}
10. Nxc4 {[%clk 0:02:42.8]} 10... h4 {[%clk 0:02:47.9]} 11. Bd2 {[%clk
0:02:38.8]} 11... Nd5 {[%clk 0:02:44.6]} 12. Qa4 {[%clk 0:02:23.7]} 12... f5
{[%clk 0:02:34.7]} 13. Rc1 {[%clk 0:02:18.3]} 13... O-O-O {[%clk 0:02:13.4]} 14.
a3 {[%clk 0:02:13]} 14... Kb8 {[%clk 0:01:59.9]} 15. b4 {[%clk 0:01:09.5]} 15...
Bd6 {[%clk 0:01:47.8]} 16. Qb3 {[%clk 0:00:46.4]} 16... Nce7 {[%clk 0:01:34.6]}
17. b5 {[%clk 0:00:43.3]} 17... g5 {[%clk 0:01:25.5]} 18. a4 {[%clk 0:00:35.2]}
18... Nf6 {[%clk 0:00:47.6]} 19. Na5 {[%clk 0:00:28.1]} 19... Ned5 {[%clk
0:00:32.4]} 20. Nc6+ {[%clk 0:00:26.2]} 20... Ka8 {[%clk 0:00:32.9]} 21. Nxd8
{[%clk 0:00:26.4]} 21... Qxd8 {[%clk 0:00:33.8]} 22. a5 {[%clk 0:00:22.5]} 22...
hxg3 {[%clk 0:00:25]} 23. hxg3 {[%clk 0:00:22.2]} 23... Rxh1+ {[%clk 0:00:25.9]}
24. Bxh1 {[%clk 0:00:22.9]} 24... Qh8 {[%clk 0:00:26.5]} 25. Bxd5 {[%clk
0:00:16.8]} 25... exd5 {[%clk 0:00:25.1]} 26. Qd3 {[%clk 0:00:16.7]} 26... Qh1+
{[%clk 0:00:23.1]} 27. Qf1 {[%clk 0:00:16.3]} 27... Qf3 {[%clk 0:00:21.9]} 28.
a6 {[%clk 0:00:15.2]} 28... Ne4 {[%clk 0:00:19.1]} 29. axb7+ {[%clk 0:00:12.6]}
29... Kxb7 {[%clk 0:00:20]} 30. Rc2 {[%clk 0:00:07.8]} 30... Nxf2 {[%clk
0:00:11.4]} 31. Bc1 {[%clk 0:00:06.1]} 31... Bb4+ {[%clk 0:00:08.5]} 32. Bd2
{[%clk 0:00:05.1]} 32... Qxe3+ {[%clk 0:00:07.2]} 33. Qe2 {[%clk 0:00:04.8]}
33... Nd3+ {[%clk 0:00:05.1]} 34. Kf1 {[%clk 0:00:05.3]} 34... Bxd2 {[%clk
0:00:04.9]} 35. Rxd2 {[%clk 0:00:04.2]} 35... Qxe2+ {[%clk 0:00:05.3]} 36. Kxe2
{[%clk 0:00:04.9]} 36... Nb4 {[%clk 0:00:05.4]} 37. Ke3 {[%clk 0:00:05]} 37...
Kb6 {[%clk 0:00:05.3]} 38. Rf2 {[%clk 0:00:05.2]} 38... f4+ {[%clk 0:00:05.5]}
39. gxf4 {[%clk 0:00:06.1]} 39... gxf4+ {[%clk 0:00:06.4]} 40. Rxf4 {[%clk
0:00:06.7]} 40... Kxb5 {[%clk 0:00:06.4]} 41. Rf7 {[%clk 0:00:07.3]} 41... Kb6
{[%clk 0:00:06.5]} 42. Rf6+ {[%clk 0:00:07.1]} 42... c6 {[%clk 0:00:07]} 43. Kd2
{[%clk 0:00:07.7]} 43... a5 {[%clk 0:00:05.5]} 44. Kc3 {[%clk 0:00:08.1]} 44...
Na6 {[%clk 0:00:06]} 45. Rf8 {[%clk 0:00:07.8]} 45... Nc7 {[%clk 0:00:06.3]} 46.
Rb8+ {[%clk 0:00:04.8]} 46... Ka7 {[%clk 0:00:06.6]} 47. Rc8 {[%clk 0:00:04.9]}
47... Nb5+ {[%clk 0:00:06.7]} 48. Kd3 {[%clk 0:00:04.8]} 48... Kb7 {[%clk
0:00:07.6]} 49. Rh8 {[%clk 0:00:04.7]} 49... a4 {[%clk 0:00:08.1]} 50. Rh1
{[%clk 0:00:04.1]} 50... a3 {[%clk 0:00:08.3]} 51. Kc2 {[%clk 0:00:03.1]} 51...
Nxd4+ {[%clk 0:00:08]} 52. Kc3 {[%clk 0:00:03.8]} 52... Nb5+ {[%clk 0:00:07.6]}
53. Kb4 {[%clk 0:00:04.7]} 53... Kb6 {[%clk 0:00:08.2]} 54. Rh6 {[%clk
0:00:04.8]} 54... d4 {[%clk 0:00:03.9]} 55. Rg6 {[%clk 0:00:04]} 55... a2 {[%clk
0:00:03.3]} 56. Rg1 {[%clk 0:00:02.4]} 56... Nc3 {[%clk 0:00:03.9]} 57. Kb3
{[%clk 0:00:02.4]} 57... Kb5 {[%clk 0:00:03.8]} 58. Rf1 {[%clk 0:00:01.6]} 58...
c5 {[%clk 0:00:03.8]} 59. Kc2 {[%clk 0:00:02.5]} 59... Kc4 {[%clk 0:00:03.9]}
60. Ra1 {[%clk 0:00:03.2]} 60... Kb4 {[%clk 0:00:04.1]} 61. Kd2 {[%clk
0:00:04.1]} 61... Kb3 {[%clk 0:00:04.2]} 62. Kd3 {[%clk 0:00:04.6]} 62... Kb2
{[%clk 0:00:04.2]} 63. Rf1 {[%clk 0:00:05.3]} 63... a1=Q {[%clk 0:00:04.7]} 0-1

[Event "*** Titled Tuesday Blitz"]
[Site "Chess.com"]
[Date "2020.05.19"]
[Round "9"]
[White "FontVella8"]
[Black "GadimbayliA"]
[Result "1-0"]
[WhiteElo "2558"]
[BlackElo "2806"]
[TimeControl "180+1"]
[EndTime "13:48:11 PDT"]
[Termination "FontVella8 won on time"]

1. e4 {[%clk 0:03:00.9]} 1... e5 {[%clk 0:03:00.3]} 2. Nf3 {[%clk 0:03:00.1]}
2... d5 {[%clk 0:03:00.8]} 3. Qe2 {[%clk 0:02:49.6]} 3... Nf6 {[%clk 0:02:56.7]}
4. exd5 {[%clk 0:02:41.4]} 4... e4 {[%clk 0:02:57.6]} 5. d3 {[%clk 0:02:39]}
5... Bb4+ {[%clk 0:02:58]} 6. c3 {[%clk 0:02:36.1]} 6... O-O {[%clk 0:02:58.9]}
7. dxe4 {[%clk 0:02:34.5]} 7... Bd6 {[%clk 0:02:59.5]} 8. Bg5 {[%clk 0:02:30.2]}
8... Re8 {[%clk 0:03:00.1]} 9. Nbd2 {[%clk 0:02:30.2]} 9... h6 {[%clk
0:03:00.1]} 10. Bxf6 {[%clk 0:02:28.1]} 10... Qxf6 {[%clk 0:03:01]} 11. Nd4
{[%clk 0:02:20.1]} 11... Nd7 {[%clk 0:02:38.1]} 12. O-O-O {[%clk 0:02:17.3]}
12... Nc5 {[%clk 0:02:35.4]} 13. f3 {[%clk 0:02:14.2]} 13... Be5 {[%clk
0:02:32.8]} 14. Nc4 {[%clk 0:02:10.6]} 14... Bf4+ {[%clk 0:02:19.8]} 15. Kb1
{[%clk 0:02:09.1]} 15... h5 {[%clk 0:02:20.7]} 16. g3 {[%clk 0:02:08.6]} 16...
Bh6 {[%clk 0:02:21]} 17. h4 {[%clk 0:02:06.5]} 17... b5 {[%clk 0:02:17.1]} 18.
Na5 {[%clk 0:02:01.1]} 18... Rb8 {[%clk 0:02:04.8]} 19. Nac6 {[%clk 0:02:01]}
19... Rb6 {[%clk 0:02:04.7]} 20. b3 {[%clk 0:01:53.4]} 20... a5 {[%clk
0:01:47.2]} 21. Qc2 {[%clk 0:01:49.1]} 21... Bd7 {[%clk 0:01:33.4]} 22. Bg2
{[%clk 0:01:42.9]} 22... Qg6 {[%clk 0:01:27.4]} 23. Bh3 {[%clk 0:01:11.9]} 23...
Qxg3 {[%clk 0:01:10.5]} 24. Bxd7 {[%clk 0:01:11.1]} 24... Nxd7 {[%clk
0:01:11.4]} 25. Rdg1 {[%clk 0:01:07.2]} 25... Qf4 {[%clk 0:01:11.2]} 26. Nf5
{[%clk 0:00:59.9]} 26... Ne5 {[%clk 0:01:10.1]} 27. Nxh6+ {[%clk 0:00:53.2]}
27... Qxh6 {[%clk 0:01:09.7]} 28. Nd4 {[%clk 0:00:51.4]} 28... g6 {[%clk
0:01:01.3]} 29. Rg2 {[%clk 0:00:44.6]} 29... Qf4 {[%clk 0:01:00.5]} 30. Qd2
{[%clk 0:00:39.1]} 30... Rf6 {[%clk 0:00:55.2]} 31. Qxf4 {[%clk 0:00:27.3]}
31... Rxf4 {[%clk 0:00:56.1]} 32. Rg3 {[%clk 0:00:21.4]} 32... b4 {[%clk
0:00:55.9]} 33. cxb4 {[%clk 0:00:20.2]} 33... axb4 {[%clk 0:00:56.8]} 34. Rc1
{[%clk 0:00:19.6]} 34... Re7 {[%clk 0:00:57.3]} 35. Nc6 {[%clk 0:00:17.7]} 35...
Nxc6 {[%clk 0:00:56.2]} 36. Rxc6 {[%clk 0:00:17.9]} 36... Rxh4 {[%clk
0:00:56.8]} 37. Rc4 {[%clk 0:00:15.4]} 37... Rh1+ {[%clk 0:00:55.6]} 38. Kc2
{[%clk 0:00:15.4]} 38... h4 {[%clk 0:00:56.5]} 39. Rg4 {[%clk 0:00:11.5]} 39...
h3 {[%clk 0:00:48]} 40. Rh4 {[%clk 0:00:10.7]} 40... h2 {[%clk 0:00:47.1]} 41.
Rxb4 {[%clk 0:00:07.5]} 41... Ra1 {[%clk 0:00:46.7]} 42. Rb8+ {[%clk 0:00:05.2]}
42... Kg7 {[%clk 0:00:46.6]} 43. Rbh8 {[%clk 0:00:05.7]} 43... Rxa2+ {[%clk
0:00:37.5]} 44. Kc3 {[%clk 0:00:05.5]} 44... Rf2 {[%clk 0:00:25.5]} 45. Kd4
{[%clk 0:00:03.5]} 45... Rxf3 {[%clk 0:00:17.8]} 46. e5 {[%clk 0:00:03.8]} 46...
g5 {[%clk 0:00:08.3]} 47. R4h7+ {[%clk 0:00:02.5]} 47... Kg6 {[%clk 0:00:08.5]}
48. Rh6+ {[%clk 0:00:03.1]} 48... Kf5 {[%clk 0:00:07.2]} 49. Rf6+ {[%clk
0:00:02.8]} 49... Kg4 {[%clk 0:00:07.7]} 50. Rxf3 {[%clk 0:00:03]} 50... Kxf3
{[%clk 0:00:08.6]} 51. Rxh2 {[%clk 0:00:03.4]} 51... g4 {[%clk 0:00:08.7]} 52.
Rh6 {[%clk 0:00:02.1]} 52... g3 {[%clk 0:00:05.7]} 53. Rf6+ {[%clk 0:00:02.2]}
53... Ke2 {[%clk 0:00:06.1]} 54. d6 {[%clk 0:00:01.4]} 54... cxd6 {[%clk
0:00:05.8]} 55. exd6 {[%clk 0:00:02.3]} 55... Rb7 {[%clk 0:00:06.4]} 56. Kc5
{[%clk 0:00:01.4]} 56... g2 {[%clk 0:00:05.6]} 57. Kc6 {[%clk 0:00:01.9]} 57...
Rxb3 {[%clk 0:00:02.7]} 58. d7 {[%clk 0:00:02.2]} 58... Rc3+ {[%clk 0:00:03.1]}
59. Kb7 {[%clk 0:00:01.8]} 59... Rd3 {[%clk 0:00:03.3]} 60. Rxf7 {[%clk
0:00:02.2]} 60... Rf3 {[%clk 0:00:03.2]} 61. Re7+ {[%clk 0:00:03.1]} 61... Re3
{[%clk 0:00:03.3]} 62. d8=Q {[%clk 0:00:03.6]} 62... g1=Q {[%clk 0:00:03.4]} 63.
Rxe3+ {[%clk 0:00:02]} 63... Qxe3 {[%clk 0:00:04.3]} 64. Qb6 {[%clk 0:00:02]}
64... Qb3 {[%clk 0:00:05.2]} 65. Qxb3 {[%clk 0:00:01.7]} 1-0

[Event "*** Titled Tuesday Blitz"]
[Site "Chess.com"]
[Date "2020.05.19"]
[Round "9"]
[White "MITerryble"]
[Black "Sibelephant"]
[Result "0-1"]
[WhiteElo "2854"]
[BlackElo "3167"]
[TimeControl "180+1"]
[EndTime "13:48:12 PDT"]
[Termination "Sibelephant won on time"]

1. d4 {[%clk 0:03:00.9]} 1... Nf6 {[%clk 0:03:00]} 2. Nf3 {[%clk 0:03:01.4]}
2... g6 {[%clk 0:03:00.3]} 3. Bg5 {[%clk 0:03:01.3]} 3... Bg7 {[%clk 0:03:00.5]}
4. c3 {[%clk 0:03:01.8]} 4... O-O {[%clk 0:02:56.1]} 5. Nbd2 {[%clk 0:03:02]}
5... d6 {[%clk 0:02:55.7]} 6. e4 {[%clk 0:03:02.4]} 6... Nc6 {[%clk 0:02:54.4]}
7. Be2 {[%clk 0:03:01.7]} 7... e5 {[%clk 0:02:49.9]} 8. dxe5 {[%clk 0:03:02.6]}
8... dxe5 {[%clk 0:02:49]} 9. O-O {[%clk 0:03:02.4]} 9... Qe7 {[%clk 0:02:46.3]}
10. b4 {[%clk 0:02:59.7]} 10... Rd8 {[%clk 0:02:41.3]} 11. Qc2 {[%clk
0:02:59.2]} 11... h6 {[%clk 0:02:41.2]} 12. Bh4 {[%clk 0:02:59.1]} 12... g5
{[%clk 0:02:29.1]} 13. Bg3 {[%clk 0:02:58.7]} 13... Nh5 {[%clk 0:02:27]} 14.
Rfe1 {[%clk 0:02:59]} 14... Nf4 {[%clk 0:01:53.5]} 15. Bf1 {[%clk 0:02:59]}
15... Bg4 {[%clk 0:01:50.2]} 16. h3 {[%clk 0:02:33.6]} 16... Bh5 {[%clk
0:01:48.7]} 17. Bh2 {[%clk 0:02:25.1]} 17... a5 {[%clk 0:01:47.5]} 18. a3 {[%clk
0:02:24.6]} 18... Qf6 {[%clk 0:01:43.6]} 19. b5 {[%clk 0:01:25.2]} 19... Ne7
{[%clk 0:01:38.1]} 20. Re3 {[%clk 0:01:24.7]} 20... Bg6 {[%clk 0:01:16.5]} 21.
Nc4 {[%clk 0:01:18.1]} 21... Ned5 {[%clk 0:01:08]} 22. Ree1 {[%clk 0:01:11]}
22... Nxh3+ {[%clk 0:01:08.2]} 23. Kh1 {[%clk 0:01:03.7]} 23... Nhf4 {[%clk
0:00:28.1]} 24. Nfxe5 {[%clk 0:01:03.6]} 24... Bh7 {[%clk 0:00:25.9]} 25. f3
{[%clk 0:00:45.1]} 25... h5 {[%clk 0:00:23.6]} 26. Rad1 {[%clk 0:00:43.7]} 26...
Qe7 {[%clk 0:00:13.8]} 27. Qc1 {[%clk 0:00:36.8]} 27... Nb6 {[%clk 0:00:13.9]}
28. Nxb6 {[%clk 0:00:36.5]} 28... cxb6 {[%clk 0:00:12.8]} 29. Nc4 {[%clk
0:00:35.3]} 29... Qc5 {[%clk 0:00:04.4]} 30. Bg1 {[%clk 0:00:31.4]} 30... Qe7
{[%clk 0:00:03.5]} 31. Nxb6 {[%clk 0:00:31.4]} 31... Rxd1 {[%clk 0:00:03.4]} 32.
Rxd1 {[%clk 0:00:29.9]} 32... Rd8 {[%clk 0:00:04]} 33. Nd5 {[%clk 0:00:16.4]}
33... Nxd5 {[%clk 0:00:04.2]} 34. Rxd5 {[%clk 0:00:17.3]} 34... Rxd5 {[%clk
0:00:04.1]} 35. exd5 {[%clk 0:00:18.2]} 35... g4 {[%clk 0:00:04.8]} 36. Qf4
{[%clk 0:00:14.7]} 36... Qh4+ {[%clk 0:00:04.2]} 37. Qh2 {[%clk 0:00:14.3]}
37... Qe1 {[%clk 0:00:03.9]} 38. Qb8+ {[%clk 0:00:13.1]} 38... Bf8 {[%clk
0:00:03.7]} 39. Bc4 {[%clk 0:00:12.7]} 39... gxf3 {[%clk 0:00:03.1]} 40. gxf3
{[%clk 0:00:13.6]} 40... Qxc3 {[%clk 0:00:03.4]} 41. Be2 {[%clk 0:00:12.4]}
41... Bg6 {[%clk 0:00:03]} 42. d6 {[%clk 0:00:11.5]} 42... Qe5 {[%clk
0:00:03.3]} 43. Bc4 {[%clk 0:00:04.3]} 43... Kg7 {[%clk 0:00:03.5]} 44. Qxb7
{[%clk 0:00:02]} 44... Bxd6 {[%clk 0:00:03.9]} 45. Qd5 {[%clk 0:00:02.6]} 45...
Qg3 {[%clk 0:00:04.3]} 46. Qd4+ {[%clk 0:00:02.5]} 46... Kh7 {[%clk 0:00:04.4]}
47. Qf2 {[%clk 0:00:01.6]} 47... Qh3+ {[%clk 0:00:04.8]} 48. Bh2 {[%clk
0:00:02.2]} 48... Bxh2 {[%clk 0:00:04.9]} 49. Qxh2 {[%clk 0:00:03.1]} 49...
Qxf3+ {[%clk 0:00:05.2]} 50. Qg2 {[%clk 0:00:03.5]} 50... Qf4 {[%clk 0:00:05]}
51. Bd5 {[%clk 0:00:02.7]} 51... Qc1+ {[%clk 0:00:04.9]} 52. Kh2 {[%clk
0:00:02.7]} 52... Qxa3 {[%clk 0:00:05.5]} 53. Qg3 {[%clk 0:00:01.7]} 53... Qb2+
{[%clk 0:00:05.9]} 54. Bg2 {[%clk 0:00:01.9]} 54... Qxb5 {[%clk 0:00:06.6]} 55.
Qe3 {[%clk 0:00:02.4]} 55... Qb8+ {[%clk 0:00:06.2]} 56. Kh1 {[%clk 0:00:02.3]}
56... a4 {[%clk 0:00:06.7]} 57. Qa3 {[%clk 0:00:02.4]} 57... Qb3 {[%clk
0:00:06.7]} 58. Qd6 {[%clk 0:00:02.1]} 58... a3 {[%clk 0:00:06.9]} 59. Bd5
{[%clk 0:00:03]} 59... Qd1+ {[%clk 0:00:06.2]} 60. Kh2 {[%clk 0:00:03.2]} 60...
a2 {[%clk 0:00:06.7]} 61. Bxf7 {[%clk 0:00:01.3]} 61... Qxd6+ {[%clk 0:00:06.3]}
0-1